[Event "Titled Tuesday Blitz April 18 Late 2023"]
[White "Broca Jimenez, Fernando"]
[Black "Marcziter, Dmitrii"]
[WhiteFideId "5104742"]
[BlackFideId "13900765"]
[WhiteElo "2062"]
[BlackElo "2162"]
[Result "0-1"]
[Round "07"]
[TimeControl "180+2"]
[Date "2023.04.18"]
[WhiteClock "0:01:43"]
[BlackClock "0:01:11"]

1. e4 {[%clk 0:03:00]}  c5 {[%clk 0:02:59]} 2. Nf3 {[%clk 0:02:59]}  a6 {[%clk 0:02:59]} 3. d4 {[%clk 0:02:59]}  cxd4 {[%clk 0:02:58]} 4. Nxd4 {[%clk 0:03:00]}  e6 {[%clk 0:02:58]} 5. Be3 {[%clk 0:02:59]}  f6 {[%clk 0:02:57]} 6. Bd3 {[%clk 0:02:58]}  Ne7 {[%clk 0:02:55]} 7. O-O {[%clk 0:02:59]}  Nbc6 {[%clk 0:02:54]} 8. c4 {[%clk 0:02:57]}  Ng6 {[%clk 0:02:53]} 9. Nc3 {[%clk 0:02:55]}  Be7 {[%clk 0:02:47]} 10. f3 {[%clk 0:02:54]}  O-O {[%clk 0:02:45]} 11. Qd2 {[%clk 0:02:53]}  Nge5 {[%clk 0:02:42]} 12. b3 {[%clk 0:02:52]}  Nxd3 {[%clk 0:02:41]} 13. Qxd3 {[%clk 0:02:53]}  Ne5 {[%clk 0:02:39]} 14. Qd2 {[%clk 0:02:51]}  d6 {[%clk 0:02:33]} 15. Rfd1 {[%clk 0:02:50]}  Bd7 {[%clk 0:02:33]} 16. Rac1 {[%clk 0:02:49]}  Qc7 {[%clk 0:02:32]} 17. Nde2 {[%clk 0:02:39]}  Rac8 {[%clk 0:02:28]} 18. Na4 {[%clk 0:02:38]}  Bxa4 {[%clk 0:02:27]} 19. bxa4 {[%clk 0:02:36]}  Nxc4 {[%clk 0:02:21]} 20. Qd4 {[%clk 0:02:28]}  b5 {[%clk 0:02:14]} 21. axb5 {[%clk 0:02:27]}  axb5 {[%clk 0:02:14]} 22. Rc3 {[%clk 0:02:25]}  d5 {[%clk 0:01:59]} 23. Qd3 {[%clk 0:02:23]}  dxe4 {[%clk 0:01:55]} 24. Qxe4 {[%clk 0:02:21]}  Qc6 {[%clk 0:01:51]} 25. Qxc6 {[%clk 0:02:11]}  Rxc6 {[%clk 0:01:50]} 26. Rb1 {[%clk 0:02:06]}  b4 {[%clk 0:01:45]} 27. Rcc1 {[%clk 0:02:02]}  Rfc8 {[%clk 0:01:44]} 28. Nd4 {[%clk 0:01:59]}  Ra6 {[%clk 0:01:38]} 29. Bf2 {[%clk 0:01:55]}  Kf7 {[%clk 0:01:28]} 30. Nc2 {[%clk 0:01:55]}  Nd2 {[%clk 0:01:19]} 31. Rb2 {[%clk 0:01:55]}  Rac6 {[%clk 0:01:16]} 32. Be1 {[%clk 0:01:46]}  Nc4 {[%clk 0:01:13]} 33. Rbb1 {[%clk 0:01:43]}  Na3 {[%clk 0:01:11]} 0-1


[Site "https://www.chess.com"]

[Event "Titled Tuesday Blitz April 18 Late 2023"]
[White "Qiao, Cindy"]
[Black "Dubreuil, Julien"]
[WhiteFideId "2620243"]
[BlackFideId "621285"]
[WhiteElo "1777"]
[BlackElo "2201"]
[Result "1-0"]
[Round "07"]
[TimeControl "180+2"]
[Date "2023.04.18"]
[WhiteClock "0:00:17"]
[BlackClock "0:00:02"]

1. d4 {[%clk 0:03:00]}  d5 {[%clk 0:02:59]} 2. Bf4 {[%clk 0:03:00]}  c5 {[%clk 0:02:59]} 3. e3 {[%clk 0:03:01]}  Nc6 {[%clk 0:02:59]} 4. c3 {[%clk 0:03:01]}  Nf6 {[%clk 0:02:59]} 5. Nf3 {[%clk 0:03:01]}  Nh5 {[%clk 0:02:59]} 6. Bg5 {[%clk 0:03:01]}  h6 {[%clk 0:02:59]} 7. Bh4 {[%clk 0:03:01]}  g5 {[%clk 0:02:59]} 8. Bg3 {[%clk 0:03:02]}  Qb6 {[%clk 0:02:56]} 9. Qc2 {[%clk 0:02:57]}  Bf5 {[%clk 0:02:53]} 10. dxc5 {[%clk 0:02:41]}  Bxc2 {[%clk 0:02:50]} 11. cxb6 {[%clk 0:02:41]}  axb6 {[%clk 0:02:47]} 12. Na3 {[%clk 0:02:41]}  Rxa3 {[%clk 0:02:18]} 13. bxa3 {[%clk 0:02:41]}  Nxg3 {[%clk 0:02:01]} 14. hxg3 {[%clk 0:02:39]}  Ba4 {[%clk 0:02:01]} 15. Rb1 {[%clk 0:02:20]}  Bg7 {[%clk 0:01:59]} 16. Nd4 {[%clk 0:02:19]}  Kd7 {[%clk 0:01:32]} 17. Rxb6 {[%clk 0:02:12]}  Kc7 {[%clk 0:01:27]} 18. Rb1 {[%clk 0:02:10]}  Ra8 {[%clk 0:01:23]} 19. Bd3 {[%clk 0:02:04]}  e5 {[%clk 0:01:19]} 20. Nf5 {[%clk 0:02:02]}  Bf8 {[%clk 0:01:14]} 21. Nxh6 {[%clk 0:01:52]}  e4 {[%clk 0:01:12]} 22. Be2 {[%clk 0:01:46]}  Ne5 {[%clk 0:00:54]} 23. Ng4 {[%clk 0:01:35]}  Bc2 {[%clk 0:00:40]} 24. Rb5 {[%clk 0:01:11]}  Nd3+ {[%clk 0:00:20]} 25. Kd2 {[%clk 0:01:09]}  Rxa3 {[%clk 0:00:19]} 26. Ra1 {[%clk 0:00:51]}  Bg7 {[%clk 0:00:19]} 27. Kxc2 {[%clk 0:00:47]}  Rxc3+ {[%clk 0:00:18]} 28. Kd2 {[%clk 0:00:45]}  Ra3 {[%clk 0:00:18]} 29. Bxd3 {[%clk 0:00:38]}  Rxd3+ {[%clk 0:00:17]} 30. Ke2 {[%clk 0:00:36]}  Bxa1 {[%clk 0:00:18]} 31. f3 {[%clk 0:00:25]}  f5 {[%clk 0:00:17]} 32. Nf2 {[%clk 0:00:24]}  Ra3 {[%clk 0:00:17]} 33. Rxd5 {[%clk 0:00:22]}  Rxa2+ {[%clk 0:00:17]} 34. Rd2 {[%clk 0:00:22]}  Rxd2+ {[%clk 0:00:16]} 35. Kxd2 {[%clk 0:00:23]}  exf3 {[%clk 0:00:11]} 36. gxf3 {[%clk 0:00:23]}  Kd6 {[%clk 0:00:11]} 37. e4 {[%clk 0:00:21]}  Ke5 {[%clk 0:00:09]} 38. Kd3 {[%clk 0:00:20]}  fxe4+ {[%clk 0:00:09]} 39. Nxe4 {[%clk 0:00:21]}  b5 {[%clk 0:00:04]} 40. Nxg5 {[%clk 0:00:17]}  Kf5 {[%clk 0:00:02]} 41. Ne4 {[%clk 0:00:17]} 1-0


[Site "https://www.chess.com"]

[Event "Titled Tuesday Blitz April 18 Late 2023"]
[White "Szente Varga, Fruzsina"]
[Black "Marin Masis, Jose Esteban"]
[WhiteFideId "712264"]
[BlackFideId "6508146"]
[WhiteElo "1994"]
[BlackElo "1838"]
[Result "1-0"]
[Round "07"]
[TimeControl "180+2"]
[Date "2023.04.18"]
[WhiteClock "0:01:18"]
[BlackClock "0:00:03"]

1. e4 {[%clk 0:03:00]}  c5 {[%clk 0:02:58]} 2. Nf3 {[%clk 0:03:00]}  Nc6 {[%clk 0:02:54]} 3. Bb5 {[%clk 0:03:00]}  d6 {[%clk 0:02:49]} 4. d4 {[%clk 0:02:59]}  cxd4 {[%clk 0:02:47]} 5. Qxd4 {[%clk 0:03:00]}  Bd7 {[%clk 0:02:42]} 6. Qd3 {[%clk 0:02:59]}  Nf6 {[%clk 0:02:39]} 7. c4 {[%clk 0:02:59]}  g6 {[%clk 0:02:38]} 8. Nc3 {[%clk 0:02:59]}  Bg7 {[%clk 0:02:38]} 9. O-O {[%clk 0:03:00]}  O-O {[%clk 0:02:37]} 10. h3 {[%clk 0:02:59]}  Rc8 {[%clk 0:02:27]} 11. Be3 {[%clk 0:02:59]}  Nb4 {[%clk 0:02:21]} 12. Qe2 {[%clk 0:02:58]}  a6 {[%clk 0:02:19]} 13. Bxd7 {[%clk 0:02:57]}  Qxd7 {[%clk 0:02:18]} 14. Rfd1 {[%clk 0:02:25]}  Qc7 {[%clk 0:02:09]} 15. b3 {[%clk 0:02:20]}  Nd7 {[%clk 0:01:55]} 16. a3 {[%clk 0:02:12]}  Bxc3 {[%clk 0:01:48]} 17. Rac1 {[%clk 0:02:12]}  Bg7 {[%clk 0:01:34]} 18. axb4 {[%clk 0:02:12]}  Nf6 {[%clk 0:01:25]} 19. Bd4 {[%clk 0:02:08]}  Rfe8 {[%clk 0:01:16]} 20. e5 {[%clk 0:02:06]}  dxe5 {[%clk 0:01:13]} 21. Nxe5 {[%clk 0:02:02]}  Nh5 {[%clk 0:01:04]} 22. Qe3 {[%clk 0:01:48]}  Rcd8 {[%clk 0:00:58]} 23. Bc3 {[%clk 0:01:34]}  Rxd1+ {[%clk 0:00:51]} 24. Rxd1 {[%clk 0:01:35]}  Rd8 {[%clk 0:00:50]} 25. Rxd8+ {[%clk 0:01:28]}  Qxd8 {[%clk 0:00:51]} 26. Qf3 {[%clk 0:01:27]}  e6 {[%clk 0:00:11]} 27. Qxf7+ {[%clk 0:01:26]}  Kh8 {[%clk 0:00:11]} 28. g4 {[%clk 0:01:21]}  Qd1+ {[%clk 0:00:10]} 29. Kh2 {[%clk 0:01:20]}  Qd8 {[%clk 0:00:03]} 30. gxh5 {[%clk 0:01:18]} 1-0


[Site "https://www.chess.com"]

[Event "Titled Tuesday Blitz April 18 Late 2023"]
[White "tandercat"]
[Black "Rodriguez Santiago, Jaime"]
[BlackFideId "3100898"]
[WhiteElo "1974"]
[BlackElo "2025"]
[Result "0-1"]
[Round "07"]
[TimeControl "180+2"]
[Date "2023.04.18"]
[WhiteClock "0:00:01"]
[BlackClock "0:00:24"]

1. d4 {[%clk 0:03:00]}  Nf6 {[%clk 0:02:58]} 2. c4 {[%clk 0:03:00]}  e6 {[%clk 0:02:57]} 3. Nc3 {[%clk 0:02:59]}  d5 {[%clk 0:02:57]} 4. cxd5 {[%clk 0:02:59]}  exd5 {[%clk 0:02:56]} 5. Bg5 {[%clk 0:02:59]}  Be7 {[%clk 0:02:53]} 6. e3 {[%clk 0:02:59]}  c6 {[%clk 0:02:53]} 7. Qc2 {[%clk 0:02:58]}  O-O {[%clk 0:02:53]} 8. Bd3 {[%clk 0:02:58]}  h6 {[%clk 0:02:51]} 9. Bh4 {[%clk 0:02:56]}  Re8 {[%clk 0:02:50]} 10. Nge2 {[%clk 0:02:49]}  Nbd7 {[%clk 0:02:50]} 11. f3 {[%clk 0:02:41]}  Nb6 {[%clk 0:02:33]} 12. O-O {[%clk 0:02:38]}  Nfd7 {[%clk 0:02:26]} 13. Bxe7 {[%clk 0:02:33]}  Qxe7 {[%clk 0:02:27]} 14. e4 {[%clk 0:02:32]}  Nf6 {[%clk 0:02:16]} 15. e5 {[%clk 0:02:26]}  Nfd7 {[%clk 0:02:11]} 16. f4 {[%clk 0:02:26]}  c5 {[%clk 0:02:04]} 17. a4 {[%clk 0:01:48]}  cxd4 {[%clk 0:01:58]} 18. Nxd4 {[%clk 0:01:35]}  Qc5 {[%clk 0:01:53]} 19. Nb5 {[%clk 0:01:19]}  Nc4 {[%clk 0:01:40]} 20. Bxc4 {[%clk 0:01:00]}  dxc4 {[%clk 0:01:38]} 21. Rad1 {[%clk 0:00:46]}  Nf8 {[%clk 0:01:33]} 22. Kh1 {[%clk 0:00:31]}  Bg4 {[%clk 0:01:29]} 23. Rd2 {[%clk 0:00:27]}  Ne6 {[%clk 0:01:20]} 24. Nxe6 {[%clk 0:00:20]}  Rxe6 {[%clk 0:01:14]} 25. h3 {[%clk 0:00:17]}  Bh5 {[%clk 0:01:04]} 26. Rd4 {[%clk 0:00:16]}  a6 {[%clk 0:01:03]} 27. Rxc4 {[%clk 0:00:16]}  Qe7 {[%clk 0:00:46]} 28. Nc7 {[%clk 0:00:15]}  Rf8 {[%clk 0:00:39]} 29. Nxe6 {[%clk 0:00:15]}  fxe6 {[%clk 0:00:39]} 30. Rc7 {[%clk 0:00:15]}  Qh4 {[%clk 0:00:38]} 31. Qb3 {[%clk 0:00:09]}  Bg4 {[%clk 0:00:33]} 32. Qxb7 {[%clk 0:00:08]}  Bf5 {[%clk 0:00:29]} 33. Rxg7+ {[%clk 0:00:08]}  Kh8 {[%clk 0:00:29]} 34. Qe7 {[%clk 0:00:06]}  Qxe7 {[%clk 0:00:28]} 35. Rxe7 {[%clk 0:00:07]}  h5 {[%clk 0:00:27]} 36. Rd1 {[%clk 0:00:07]}  h4 {[%clk 0:00:28]} 37. Rdd7 {[%clk 0:00:07]}  Rg8 {[%clk 0:00:27]} 38. Rf7 {[%clk 0:00:06]}  a5 {[%clk 0:00:27]} 39. Ra7 {[%clk 0:00:05]}  Be4 {[%clk 0:00:25]} 40. Kg1 {[%clk 0:00:01]}  Rxg2+ {[%clk 0:00:25]} 41. Kf1 {[%clk 0:00:01]}  Rg8 {[%clk 0:00:24]} 0-1


[Site "https://www.chess.com"]

[Event "Titled Tuesday Blitz April 18 Late 2023"]
[White "Seletsky, Grigory"]
[Black "ChessSG1"]
[WhiteFideId "14112191"]
[WhiteElo "2490"]
[BlackElo "2211"]
[Result "1-0"]
[Round "07"]
[TimeControl "180+2"]
[Date "2023.04.18"]
[WhiteClock "0:00:19"]
[BlackClock "0:00:02"]

1. e4 {[%clk 0:03:00]}  c5 {[%clk 0:02:59]} 2. Nf3 {[%clk 0:03:00]}  g6 {[%clk 0:02:59]} 3. c4 {[%clk 0:02:58]}  Bg7 {[%clk 0:02:59]} 4. Nc3 {[%clk 0:02:57]}  Nc6 {[%clk 0:02:59]} 5. d3 {[%clk 0:02:58]}  e6 {[%clk 0:02:55]} 6. g3 {[%clk 0:02:58]}  Nge7 {[%clk 0:02:54]} 7. Bg2 {[%clk 0:02:58]}  d6 {[%clk 0:02:54]} 8. O-O {[%clk 0:02:58]}  O-O {[%clk 0:02:54]} 9. Nh4 {[%clk 0:02:57]}  a6 {[%clk 0:02:49]} 10. f4 {[%clk 0:02:58]}  Rb8 {[%clk 0:02:40]} 11. a4 {[%clk 0:02:45]}  Nd4 {[%clk 0:02:38]} 12. g4 {[%clk 0:02:32]}  Nec6 {[%clk 0:02:34]} 13. Nf3 {[%clk 0:02:27]}  Nxf3+ {[%clk 0:02:30]} 14. Bxf3 {[%clk 0:02:26]}  Nd4 {[%clk 0:02:26]} 15. Bg2 {[%clk 0:02:24]}  f5 {[%clk 0:02:26]} 16. exf5 {[%clk 0:02:23]}  gxf5 {[%clk 0:02:24]} 17. g5 {[%clk 0:02:22]}  b5 {[%clk 0:02:12]} 18. axb5 {[%clk 0:02:21]}  axb5 {[%clk 0:02:13]} 19. Ra2 {[%clk 0:02:12]}  bxc4 {[%clk 0:02:08]} 20. dxc4 {[%clk 0:02:12]}  Qc7 {[%clk 0:01:59]} 21. h4 {[%clk 0:02:09]}  Bd7 {[%clk 0:01:54]} 22. h5 {[%clk 0:02:08]}  Bc6 {[%clk 0:01:51]} 23. h6 {[%clk 0:02:07]}  Bh8 {[%clk 0:01:50]} 24. Bxc6 {[%clk 0:02:00]}  Nxc6 {[%clk 0:01:42]} 25. Nb5 {[%clk 0:01:57]}  Qe7 {[%clk 0:01:25]} 26. Qxd6 {[%clk 0:01:54]}  Qxd6 {[%clk 0:01:15]} 27. Nxd6 {[%clk 0:01:55]}  Nd4 {[%clk 0:01:15]} 28. Be3 {[%clk 0:01:32]}  Rfd8 {[%clk 0:01:14]} 29. Nb5 {[%clk 0:01:19]}  Nxb5 {[%clk 0:01:14]} 30. cxb5 {[%clk 0:01:19]}  Rxb5 {[%clk 0:01:15]} 31. Rc1 {[%clk 0:01:14]}  Bxb2 {[%clk 0:01:13]} 32. Rxc5 {[%clk 0:01:09]}  Rb7 {[%clk 0:00:49]} 33. Rc6 {[%clk 0:00:55]}  Kf7 {[%clk 0:00:48]} 34. Ra7 {[%clk 0:00:48]}  Rxa7 {[%clk 0:00:21]} 35. Bxa7 {[%clk 0:00:48]}  Ra8 {[%clk 0:00:22]} 36. Be3 {[%clk 0:00:40]}  Ra4 {[%clk 0:00:20]} 37. Kf2 {[%clk 0:00:38]}  Re4 {[%clk 0:00:13]} 38. Rc7+ {[%clk 0:00:36]}  Kg6 {[%clk 0:00:13]} 39. Kf3 {[%clk 0:00:35]}  e5 {[%clk 0:00:07]} 40. Rg7+ {[%clk 0:00:35]}  Kh5 {[%clk 0:00:07]} 41. Rxh7 {[%clk 0:00:32]}  exf4 {[%clk 0:00:07]} 42. Bxf4 {[%clk 0:00:33]}  Bc3 {[%clk 0:00:04]} 43. Rd7 {[%clk 0:00:29]}  Ra4 {[%clk 0:00:04]} 44. Rd1 {[%clk 0:00:25]}  Ra8 {[%clk 0:00:04]} 45. Rh1+ {[%clk 0:00:23]}  Kg6 {[%clk 0:00:04]} 46. h7 {[%clk 0:00:22]}  Rh8 {[%clk 0:00:05]} 47. Rh6+ {[%clk 0:00:20]}  Kg7 {[%clk 0:00:05]} 48. Rc6 {[%clk 0:00:19]}  Bb2 {[%clk 0:00:02]} 49. g6 {[%clk 0:00:19]} 1-0


[Site "https://www.chess.com"]

[Event "Titled Tuesday Blitz April 18 Late 2023"]
[White "Dahlgren, James Allen"]
[Black "Alexikov, Alexander"]
[WhiteFideId "22256873"]
[BlackFideId "14103958"]
[WhiteElo "2182"]
[BlackElo "2186"]
[Result "0-1"]
[Round "07"]
[TimeControl "180+2"]
[Date "2023.04.18"]
[WhiteClock "0:00:05"]
[BlackClock "0:00:37"]

1. e4 {[%clk 0:02:57]}  c5 {[%clk 0:02:59]} 2. Nc3 {[%clk 0:02:57]}  Nc6 {[%clk 0:02:58]} 3. Nf3 {[%clk 0:02:56]}  g6 {[%clk 0:02:58]} 4. d4 {[%clk 0:02:55]}  cxd4 {[%clk 0:02:57]} 5. Nxd4 {[%clk 0:02:56]}  Bg7 {[%clk 0:02:56]} 6. Be3 {[%clk 0:02:55]}  Nf6 {[%clk 0:02:55]} 7. Be2 {[%clk 0:02:48]}  d6 {[%clk 0:02:52]} 8. O-O {[%clk 0:02:46]}  O-O {[%clk 0:02:50]} 9. h3 {[%clk 0:02:40]}  Bd7 {[%clk 0:02:44]} 10. f4 {[%clk 0:02:38]}  Rc8 {[%clk 0:02:39]} 11. Bf3 {[%clk 0:02:21]}  Na5 {[%clk 0:02:18]} 12. Qd3 {[%clk 0:02:10]}  Nc4 {[%clk 0:02:10]} 13. Nd1 {[%clk 0:01:57]}  e5 {[%clk 0:02:01]} 14. Nb3 {[%clk 0:01:49]}  Bb5 {[%clk 0:01:50]} 15. fxe5 {[%clk 0:01:36]}  dxe5 {[%clk 0:01:47]} 16. Qxd8 {[%clk 0:01:35]}  Rfxd8 {[%clk 0:01:46]} 17. Rf2 {[%clk 0:01:21]}  Rxd1+ {[%clk 0:01:40]} 18. Rxd1 {[%clk 0:01:15]}  Nxe3 {[%clk 0:01:39]} 19. Rc1 {[%clk 0:01:12]}  Nc4 {[%clk 0:01:34]} 20. Be2 {[%clk 0:01:10]}  a6 {[%clk 0:01:32]} 21. Bxc4 {[%clk 0:01:09]}  Bxc4 {[%clk 0:01:31]} 22. Re1 {[%clk 0:01:06]}  b6 {[%clk 0:01:28]} 23. Rd2 {[%clk 0:01:06]}  Bf8 {[%clk 0:01:24]} 24. g4 {[%clk 0:01:04]}  h6 {[%clk 0:01:22]} 25. Kg2 {[%clk 0:01:04]}  a5 {[%clk 0:01:21]} 26. Kf3 {[%clk 0:01:01]}  Be7 {[%clk 0:01:03]} 27. Red1 {[%clk 0:00:53]}  Be6 {[%clk 0:00:59]} 28. c3 {[%clk 0:00:46]}  h5 {[%clk 0:00:58]} 29. gxh5 {[%clk 0:00:45]}  Nxh5 {[%clk 0:00:55]} 30. Rh1 {[%clk 0:00:30]}  a4 {[%clk 0:00:45]} 31. Nc1 {[%clk 0:00:27]}  a3 {[%clk 0:00:44]} 32. bxa3 {[%clk 0:00:24]}  Rxc3+ {[%clk 0:00:42]} 33. Rd3 {[%clk 0:00:24]}  Rc2 {[%clk 0:00:41]} 34. Ne2 {[%clk 0:00:09]}  Bc5 {[%clk 0:00:39]} 35. Rc1 {[%clk 0:00:05]}  Rxa2 {[%clk 0:00:37]} 0-1


[Site "https://www.chess.com"]

[Event "Titled Tuesday Blitz April 18 Late 2023"]
[White "Ng, Gary"]
[Black "Vanek, Tomas"]
[WhiteFideId "2604914"]
[BlackFideId "313459"]
[WhiteElo "2297"]
[BlackElo "2052"]
[Result "1-0"]
[Round "07"]
[TimeControl "180+2"]
[Date "2023.04.18"]
[WhiteClock "0:01:34"]
[BlackClock "0:00:46"]

1. d4 {[%clk 0:03:00]}  f5 {[%clk 0:02:56]} 2. g3 {[%clk 0:03:00]}  Nf6 {[%clk 0:02:55]} 3. Bg2 {[%clk 0:03:01]}  g6 {[%clk 0:02:55]} 4. Nh3 {[%clk 0:03:02]}  Bg7 {[%clk 0:02:55]} 5. O-O {[%clk 0:03:03]}  O-O {[%clk 0:02:54]} 6. c4 {[%clk 0:03:03]}  d6 {[%clk 0:02:54]} 7. Nc3 {[%clk 0:03:04]}  c6 {[%clk 0:02:53]} 8. e4 {[%clk 0:03:02]}  fxe4 {[%clk 0:02:52]} 9. Nxe4 {[%clk 0:03:02]}  Nxe4 {[%clk 0:02:52]} 10. Bxe4 {[%clk 0:03:00]}  Bxh3 {[%clk 0:02:52]} 11. Re1 {[%clk 0:03:01]}  e5 {[%clk 0:02:48]} 12. Qb3 {[%clk 0:03:01]}  Qf6 {[%clk 0:02:37]} 13. f3 {[%clk 0:02:42]}  Qf7 {[%clk 0:02:24]} 14. dxe5 {[%clk 0:02:32]}  dxe5 {[%clk 0:02:23]} 15. Be3 {[%clk 0:02:25]}  Be6 {[%clk 0:02:17]} 16. Rac1 {[%clk 0:02:21]}  Nd7 {[%clk 0:02:14]} 17. Qxb7 {[%clk 0:02:20]}  Rfc8 {[%clk 0:01:53]} 18. Bxc6 {[%clk 0:02:08]}  Rab8 {[%clk 0:01:53]} 19. Qa6 {[%clk 0:02:08]}  Rxb2 {[%clk 0:01:51]} 20. Qxc8+ {[%clk 0:02:08]}  Bf8 {[%clk 0:01:49]} 21. Bh6 {[%clk 0:02:00]}  Rb8 {[%clk 0:01:28]} 22. Qc7 {[%clk 0:01:44]}  Bxh6 {[%clk 0:00:57]} 23. Bxd7 {[%clk 0:01:43]}  Rb2 {[%clk 0:00:50]} 24. Qc8+ {[%clk 0:01:35]}  Kg7 {[%clk 0:00:49]} 25. Bxe6 {[%clk 0:01:34]}  Qxf3 {[%clk 0:00:46]} 26. Qg8+ {[%clk 0:01:34]}  Kf6 {[%clk 0:00:46]} 27. Qf7+ {[%clk 0:01:34]}  Kg5 {[%clk 0:00:46]} 28. Qxf3 {[%clk 0:01:35]}  Rxa2 {[%clk 0:00:46]} 29. h4# {[%clk 0:01:34]} 1-0


[Site "https://www.chess.com"]

[Event "Titled Tuesday Blitz April 18 Late 2023"]
[White "Ardila, Oscar Humberto"]
[Black "Tarnowska, Aleksandra"]
[WhiteFideId "4404742"]
[BlackFideId "1180967"]
[WhiteElo "1918"]
[BlackElo "1776"]
[Result "1-0"]
[Round "07"]
[TimeControl "180+2"]
[Date "2023.04.18"]
[WhiteClock "0:00:10"]
[BlackClock "0:00:02"]

1. d4 {[%clk 0:02:59]}  d5 {[%clk 0:03:00]} 2. c4 {[%clk 0:02:59]}  e6 {[%clk 0:03:00]} 3. Nc3 {[%clk 0:02:59]}  Nf6 {[%clk 0:02:56]} 4. Bg5 {[%clk 0:02:59]}  Be7 {[%clk 0:02:55]} 5. Nf3 {[%clk 0:02:59]}  h6 {[%clk 0:02:56]} 6. Bh4 {[%clk 0:02:59]}  b6 {[%clk 0:02:56]} 7. e3 {[%clk 0:02:59]}  Bb7 {[%clk 0:02:56]} 8. Bd3 {[%clk 0:02:58]}  c5 {[%clk 0:02:47]} 9. O-O {[%clk 0:02:53]}  Nbd7 {[%clk 0:02:39]} 10. Rc1 {[%clk 0:02:50]}  Rc8 {[%clk 0:02:37]} 11. Qe2 {[%clk 0:02:49]}  O-O {[%clk 0:02:37]} 12. Rfd1 {[%clk 0:02:48]}  Ne4 {[%clk 0:02:30]} 13. Bxe7 {[%clk 0:02:44]}  Qxe7 {[%clk 0:02:24]} 14. Bxe4 {[%clk 0:02:37]}  dxe4 {[%clk 0:02:22]} 15. Nd2 {[%clk 0:02:22]}  f5 {[%clk 0:02:22]} 16. d5 {[%clk 0:02:07]}  exd5 {[%clk 0:02:19]} 17. Nxd5 {[%clk 0:02:07]}  Bxd5 {[%clk 0:02:18]} 18. cxd5 {[%clk 0:02:07]}  Ne5 {[%clk 0:02:17]} 19. Nc4 {[%clk 0:02:03]}  Nd3 {[%clk 0:02:10]} 20. Rxd3 {[%clk 0:01:55]}  exd3 {[%clk 0:02:09]} 21. Qxd3 {[%clk 0:01:55]}  Rcd8 {[%clk 0:02:07]} 22. Rd1 {[%clk 0:01:49]}  Qe4 {[%clk 0:02:04]} 23. f3 {[%clk 0:01:19]}  Qxd3 {[%clk 0:01:59]} 24. Rxd3 {[%clk 0:01:20]}  b5 {[%clk 0:01:55]} 25. Ne5 {[%clk 0:01:12]}  Rd6 {[%clk 0:01:41]} 26. Kf2 {[%clk 0:01:02]}  Rfd8 {[%clk 0:01:32]} 27. Nc6 {[%clk 0:00:25]}  Re8 {[%clk 0:00:34]} 28. Nxa7 {[%clk 0:00:16]}  Kf7 {[%clk 0:00:19]} 29. Nxb5 {[%clk 0:00:16]}  Rd7 {[%clk 0:00:14]} 30. a4 {[%clk 0:00:13]}  Ra8 {[%clk 0:00:12]} 31. Nc3 {[%clk 0:00:13]}  Rad8 {[%clk 0:00:09]} 32. e4 {[%clk 0:00:13]}  fxe4 {[%clk 0:00:09]} 33. fxe4 {[%clk 0:00:13]}  g5 {[%clk 0:00:09]} 34. Ke3 {[%clk 0:00:13]}  Kf6 {[%clk 0:00:09]} 35. Rd2 {[%clk 0:00:13]}  Ke5 {[%clk 0:00:08]} 36. Rf2 {[%clk 0:00:13]}  Kd6 {[%clk 0:00:08]} 37. Rf6+ {[%clk 0:00:13]}  Kc7 {[%clk 0:00:08]} 38. Rc6+ {[%clk 0:00:13]}  Kb7 {[%clk 0:00:09]} 39. Nb5 {[%clk 0:00:13]}  Re7 {[%clk 0:00:08]} 40. Rxc5 {[%clk 0:00:13]}  Rde8 {[%clk 0:00:08]} 41. Rc4 {[%clk 0:00:13]}  Kb6 {[%clk 0:00:06]} 42. b4 {[%clk 0:00:12]}  g4 {[%clk 0:00:05]} 43. Rc6+ {[%clk 0:00:12]}  Kb7 {[%clk 0:00:04]} 44. Nd6+ {[%clk 0:00:12]}  Kb8 {[%clk 0:00:04]} 45. Nxe8 {[%clk 0:00:12]}  Rxe8 {[%clk 0:00:05]} 46. Re6 {[%clk 0:00:12]}  Rd8 {[%clk 0:00:05]} 47. Re7 {[%clk 0:00:12]}  Rc8 {[%clk 0:00:05]} 48. b5 {[%clk 0:00:12]}  Rc3+ {[%clk 0:00:05]} 49. Kd4 {[%clk 0:00:12]}  Rc2 {[%clk 0:00:05]} 50. a5 {[%clk 0:00:13]}  Rxg2 {[%clk 0:00:05]} 51. b6 {[%clk 0:00:13]}  Rxh2 {[%clk 0:00:06]} 52. a6 {[%clk 0:00:13]}  Rd2+ {[%clk 0:00:06]} 53. Ke5 {[%clk 0:00:13]}  Rc2 {[%clk 0:00:06]} 54. Re8+ {[%clk 0:00:13]}  Rc8 {[%clk 0:00:07]} 55. a7+ {[%clk 0:00:11]}  Kb7 {[%clk 0:00:06]} 56. Rxc8 {[%clk 0:00:11]}  g3 {[%clk 0:00:01]} 57. Rg8 {[%clk 0:00:11]}  Kxb6 {[%clk 0:00:02]} 58. Rxg3 {[%clk 0:00:10]} 1-0


[Site "https://www.chess.com"]

[Event "Titled Tuesday Blitz April 18 Late 2023"]
[White "Dias, Joao Batista"]
[Black "Rose, Felix"]
[WhiteFideId "2108240"]
[BlackFideId "5105722"]
[WhiteElo "1907"]
[BlackElo "2039"]
[Result "0-1"]
[Round "07"]
[TimeControl "180+2"]
[Date "2023.04.18"]
[WhiteClock "0:01:01"]
[BlackClock "0:00:52"]

1. e4 {[%clk 0:02:55]}  c5 {[%clk 0:02:57]} 2. Nf3 {[%clk 0:02:54]}  g6 {[%clk 0:02:55]} 3. d4 {[%clk 0:02:54]}  cxd4 {[%clk 0:02:55]} 4. Nxd4 {[%clk 0:02:53]}  Nc6 {[%clk 0:02:55]} 5. Nxc6 {[%clk 0:02:51]}  bxc6 {[%clk 0:02:55]} 6. Qd4 {[%clk 0:02:51]}  Nf6 {[%clk 0:02:53]} 7. e5 {[%clk 0:02:51]}  Nd5 {[%clk 0:02:53]} 8. e6 {[%clk 0:02:51]}  f6 {[%clk 0:02:53]} 9. exd7+ {[%clk 0:02:51]}  Bxd7 {[%clk 0:02:53]} 10. Bc4 {[%clk 0:02:49]}  e5 {[%clk 0:02:53]} 11. Qd1 {[%clk 0:02:48]}  Be6 {[%clk 0:02:53]} 12. O-O {[%clk 0:02:47]}  Bg7 {[%clk 0:02:52]} 13. Bb3 {[%clk 0:02:44]}  O-O {[%clk 0:02:46]} 14. Nc3 {[%clk 0:02:34]}  Kh8 {[%clk 0:02:43]} 15. Ne4 {[%clk 0:02:29]}  a5 {[%clk 0:02:34]} 16. a3 {[%clk 0:02:16]}  Qc8 {[%clk 0:02:26]} 17. Nc5 {[%clk 0:02:14]}  Bg8 {[%clk 0:02:13]} 18. Re1 {[%clk 0:02:02]}  Rd8 {[%clk 0:02:06]} 19. Qe2 {[%clk 0:02:01]}  Qc7 {[%clk 0:01:57]} 20. Be3 {[%clk 0:01:54]}  Nxe3 {[%clk 0:01:56]} 21. Qxe3 {[%clk 0:01:54]}  Bd5 {[%clk 0:01:50]} 22. Bxd5 {[%clk 0:01:52]}  Rxd5 {[%clk 0:01:50]} 23. Ne6 {[%clk 0:01:51]}  Qd6 {[%clk 0:01:50]} 24. Nxg7 {[%clk 0:01:50]}  Kxg7 {[%clk 0:01:51]} 25. f4 {[%clk 0:01:41]}  exf4 {[%clk 0:01:47]} 26. Qe7+ {[%clk 0:01:39]}  Kh6 {[%clk 0:01:39]} 27. Qb7 {[%clk 0:01:32]}  Rd8 {[%clk 0:01:33]} 28. h3 {[%clk 0:01:25]}  Rd2 {[%clk 0:01:32]} 29. Re7 {[%clk 0:01:19]}  Qd5 {[%clk 0:01:03]} 30. Rxh7+ {[%clk 0:01:07]}  Kg5 {[%clk 0:00:54]} 31. h4+ {[%clk 0:01:01]}  Kg4 {[%clk 0:00:52]} 0-1


[Site "https://www.chess.com"]